bitfinex/quotes_SOLUSD_20220128
["timestamp","ask_amount","ask_price","bid_price","bid_amount"]
[1643332883324,24.5074,91.165,91.054,1.98312369]
[1643332883525,6.0,91.155,91.054,1.98312369]
[1643332884024,118.45,91.154,91.054,1.98312369]
[1643332884224,19.41,91.15,91.046,0.2]
[1643332884426,19.41,91.15,91.016,0.2]
[1643332884625,6.0,91.143,90.981,0.2]
[1643332884829,13.41,91.13,90.975,17.68686781]
[1643332885025,16.4874,91.11,90.985,6.0]
[1643332885226,2.96490155,91.108,90.986,44.97086492]
[1643332885428,6.0,91.1,90.987,0.2]
[1643332885628,6.0,91.098,90.995,111.9]
[1643332885828,13.41,91.14,90.996,0.45]
[1643332886031,49.5051,91.141,91.01,13.41]
[1643332886230,49.5051,91.141,91.04,16.4715]
[1643332886429,49.5051,91.141,91.041,0.2]
[1643332886630,49.5051,91.141,91.041,0.45]
[1643332886829,6.0,91.131,91.041,0.45]
[1643332887030,6.0,91.13,91.041,0.25]
[1643332887333,22.61669142,91.13,91.041,0.25]
[1643332887530,2.95669142,91.129,91.041,0.25]
[1643332887736,2.95669142,91.129,91.03,0.2]
[1643332887931,6.0,91.119,91.03,0.2]
[1643332888136,112.2,91.117,91.03,0.2]
[1643332888340,0.25,91.116,91.03,0.2]
[1643332888533,6.0,91.107,91.03,0.2]
[1643332888832,0.25,91.106,91.03,0.2]
[1643332889332,0.25,91.106,91.03,0.45]
[1643332890132,5.64742557,91.118,91.031,1.9916763]
[1643332890338,5.64742557,91.118,91.032,0.25]
[1643332891533,5.64742557,91.118,91.03,0.45]
[1643332892334,0.25,91.117,91.03,0.2]
[1643332892739,112.45,91.117,91.03,0.2]
[1643332894736,112.45,91.117,91.03,0.45]
[1643332895639,2.95669142,91.116,91.03,0.45]
[1643332896040,27.53774272,91.165,91.039,6.0]
[1643332896238,24.5074,91.165,91.05,13.41]
[1643332896439,24.5074,91.165,91.051,112.4]
[1643332896639,24.5074,91.165,91.06,6.0]
[1643332896837,17.24894932,91.164,91.061,0.25]
[1643332897038,17.24894932,91.164,91.07,6.0]
[1643332897238,17.24894932,91.164,91.071,49.10764476]
[1643332897439,17.24894932,91.164,91.072,112.4]
[1643332897641,17.24894932,91.164,91.073,0.2]
[1643332897839,46.8915,91.185,91.073,2.44980623]
[1643332898239,46.8915,91.185,91.074,1.99980623]
[1643332898541,23.1766,91.208,91.084,6.0]
[1643332898743,6.0,91.198,91.08,13.41]
[1643332898944,0.31968003,91.186,91.081,0.2]
[1643332899144,0.31968003,91.186,91.05,0.2]
[1643332899341,0.31968003,91.186,91.02,2.89646403]
[1643332899342,6.0,91.18,91.009,2.89646403]
[1643332899542,16.48,91.15,91.01,13.41]
[1643332899776,89.39944613,91.149,91.011,6.02714432]
[1643332900042,6.0,91.139,91.012,2.93068029]
[1643332900246,112.45,91.138,91.012,3.18068029]
[1643332900444,112.45,91.138,91.012,2.93068029]
[1643332900445,1.40133995,91.13,91.012,2.93068029]
[1643332900643,1.40133995,91.13,91.011,0.2]
[1643332900847,6.0,91.12,91.011,0.2]
[1643332901044,6.0,91.119,91.011,0.2]
[1643332901244,6.25,91.119,91.011,0.2]
[1643332902044,18.51,91.119,91.011,0.2]
[1643332902244,23.0068,91.118,91.011,0.45]
[1643332902646,0.25,91.117,91.011,0.45]
[1643332902949,19.63044613,91.116,91.011,112.65]
[1643332903145,19.63044613,91.116,91.012,0.2]
[1643332903346,0.25,91.115,91.012,0.2]
[1643332903546,0.25,91.115,91.011,0.2]
[1643332903547,6.0,91.106,91.011,0.2]
[1643332903746,6.0,91.106,90.97,29.8934]
[1643332903747,24.9405,91.105,90.989,0.2]
[1643332903948,24.0572,91.104,90.976,0.2]
[1643332904247,6.0,91.095,90.985,6.0]
[1643332904447,1.40133995,91.093,90.986,42.91911741]
[1643332904649,24.237,91.092,90.987,6.2]
[1643332904847,6.0,91.083,90.987,0.45]
[1643332905048,6.0,91.082,90.987,0.45]
[1643332905249,112.2,91.081,90.987,0.45]
[1643332905454,112.45,91.081,90.987,0.45]
[1643332907052,112.2,91.07,90.987,0.45]
[1643332907273,112.2,91.068,90.987,0.45]
[1643332907677,0.25,91.067,90.987,0.45]
[1643332908278,0.25,91.067,90.976,0.2]
[1643332908477,0.25,91.067,90.941,4.20375425]
[1643332908478,112.2,91.057,90.961,2.89646403]
[1643332908678,13.41,91.05,90.936,0.2]
[1643332908879,6.0,91.047,90.929,2.89646403]
[1643332909178,112.2,91.039,90.93,47.93805474]
[1643332909380,0.25,91.038,90.931,3.12883265]
[1643332909678,18.57524711,91.027,90.931,0.2]
[1643332909879,0.25,91.026,90.931,0.45]
[1643332910079,112.45,91.026,90.931,0.45]
[1643332910479,112.45,91.026,90.931,0.2]
[1643332911279,112.2,91.026,90.931,0.2]
[1643332912081,6.0,91.016,90.931,0.2]
[1643332912581,118.45,91.015,90.931,0.2]
[1643332912982,6.0,91.01,90.931,0.2]
[1643332913189,2.45653897,91.009,90.931,0.2]
[1643332913382,2.70653897,91.009,90.931,0.2]
[1643332914282,2.45653897,91.009,90.931,0.2]
[1643332915285,2.45653897,91.009,90.931,0.45]
[1643332915886,45.519,91.025,90.931,112.65]
[1643332916085,45.519,91.025,90.932,0.2]
[1643332916486,6.0,91.015,90.932,0.2]
[1643332916692,77.3322,91.048,90.932,0.2]
[1643332916891,17.79348054,91.047,90.932,0.2]
[1643332917092,6.0,91.037,90.932,0.2]
[1643332917288,0.25,91.036,90.932,0.2]
[1643332917488,6.0,91.037,90.932,0.2]
[1643332918994,17.54348054,91.047,90.942,112.2]
[1643332919195,17.54348054,91.047,90.943,0.2]
[1643332919390,0.25,91.046,90.952,6.0]
[1643332919593,0.25,91.046,90.953,43.37264098]
[1643332919794,0.25,91.046,90.954,112.4]
[1643332920091,0.25,91.046,90.964,6.0]
[1643332920290,0.25,91.046,90.965,0.25]
[1643332920894,16.4879,91.1,90.965,112.45]
[1643332921094,112.2,91.108,90.975,6.0]
[1643332921293,72.3156,91.157,90.975,6.0]
[1643332921294,70.6006,91.149,90.976,0.25]
[1643332921595,70.6006,91.149,90.99,13.41]
[1643332921894,17.33797404,91.148,90.991,42.45908794]
[1643332922092,17.33797404,91.148,91.001,6.0]
[1643332922293,16.4846,91.12,91.002,0.25]
[1643332922493,16.4846,91.12,91.002,6.25]
[1643332922494,3.69381204,91.117,91.002,6.25]
[1643332925498,0.25,91.116,91.002,6.25]
[1643332926999,6.0,91.107,91.002,6.25]
[1643332927199,112.2,91.106,91.002,6.25]
[1643332927400,112.45,91.106,91.002,6.25]
[1643332927803,136.182,91.106,91.002,6.25]
[1643332929405,136.182,91.106,91.002,22.3151]
[1643332929607,136.182,91.106,91.003,0.2]
[1643332930806,23.732,91.106,91.01,13.41]
[1643332931006,23.732,91.106,91.02,6.0]
[1643332931210,6.0,91.107,91.02,6.0]
[1643332931409,6.0,91.107,91.021,6.25]
[1643332931609,6.0,91.107,91.021,19.28414987]
[1643332931808,6.0,91.107,91.022,13.03414987]
[1643332932009,6.0,91.107,91.023,0.2]
[1643332932209,6.0,91.107,91.023,0.45]
[1643332933109,6.0,91.107,91.023,0.25]
[1643332933310,6.0,91.107,91.022,0.25]
[1643332933532,0.25,91.106,91.012,0.2]
[1643332933927,0.25,91.106,91.012,0.45]
[1643332934128,112.2,91.098,91.012,0.2]
[1643332934329,0.25,91.097,91.012,0.45]
[1643332934538,6.0,91.088,90.979,0.2]
[1643332934728,24.0733,91.087,90.979,0.45]
[1643332934929,24.3233,91.087,90.979,0.45]
[1643332935129,24.3233,91.087,90.979,0.25]
[1643332935331,24.0733,91.087,90.979,0.25]
[1643332935931,24.0733,91.087,90.977,0.45]
[1643332936335,3.69381204,91.076,90.977,0.45]
[1643332936832,0.25,91.075,90.977,0.45]
[1643332937634,6.0,91.077,90.978,18.47786899]
[1643332937834,23.2746,91.119,90.98,13.41]
[1643332938032,23.2746,91.119,90.979,0.45]
[1643332938033,6.0,91.099,90.981,0.2]
[1643332938235,6.0,91.099,90.98,0.2]
[1643332938236,2.95669142,91.084,90.98,0.2]
[1643332938434,13.41,91.07,90.925,2.89646403]
[1643332938634,112.2,91.059,90.912,0.2]
[1643332938838,16.5019,91.02,90.921,6.0]
[1643332939035,6.0,91.01,90.921,6.0]
[1643332939336,19.14989726,91.009,90.916,44.31209577]
[1643332939533,6.0,90.999,90.917,0.2]
[1643332939734,6.0,90.999,90.89,2.89646403]
[1643332939934,22.8873,90.998,90.887,2.89646403]
[1643332940134,6.0,90.988,90.887,2.89646403]
[1643332940335,0.25,90.987,90.888,0.25]
[1643332940535,2.38188882,90.987,90.897,6.0]
[1643332940835,2.38188882,90.987,90.898,0.25]
[1643332941033,2.38188882,90.987,90.898,6.25]
[1643332941636,2.38188882,90.987,90.898,6.0]
[1643332942037,2.13188882,90.987,90.899,112.2]
[1643332942244,6.0,90.988,90.9,0.2]
[1643332942437,6.0,90.988,90.909,6.0]
[1643332942646,6.0,91.008,90.91,6.0]
[1643332942836,6.0,91.008,90.911,112.2]
[1643332943038,6.0,91.009,90.912,0.2]
[1643332943237,15.75237806,91.008,90.911,38.45740651]
[1643332943437,112.2,91.007,90.912,0.2]
[1643332943637,6.0,90.997,90.912,0.2]
[1643332944040,6.0,90.996,90.912,0.2]
[1643332944236,0.25,90.995,90.912,0.2]
[1643332945338,112.45,90.995,90.912,0.2]
[1643332945539,5.27940802,90.994,90.912,112.4]
[1643332945739,5.27940802,90.994,90.913,0.2]
[1643332945939,5.27940802,90.994,90.911,38.20740651]
[1643332945940,5.27940802,90.994,90.912,0.2]
[1643332946139,5.27940802,90.994,90.912,112.4]
[1643332946338,5.27940802,90.994,90.913,0.2]
[1643332947039,5.27940802,90.994,90.912,0.45]
[1643332947441,23.7279,91.029,90.912,0.45]
[1643332947739,23.7279,91.029,90.912,112.65]
[1643332947940,23.7279,91.029,90.913,0.2]
[1643332948142,0.25,91.018,90.913,0.2]
[1643332948339,20.19160061,91.018,90.913,0.2]
[1643332948741,13.41,91.05,90.913,0.2]
[1643332949040,47.1377,91.049,90.923,112.2]
[1643332949244,47.1377,91.049,90.93,13.41]
[1643332949441,23.9288,91.08,90.934,112.2]
[1643332949644,15.94036724,91.079,90.941,112.2]
[1643332949844,15.94036724,91.079,90.95,13.41]
[1643332950041,15.94036724,91.079,90.961,112.2]
[1643332950240,15.94036724,91.079,90.97,13.41]
[1643332950441,15.94036724,91.079,90.962,0.45]
[1643332950442,15.94036724,91.079,90.971,0.2]
[1643332950642,15.94036724,91.079,90.97,6.0]
[1643332950942,40.29556724,91.079,90.971,36.27113873]
[1643332951142,0.25,91.078,90.972,0.2]
[1643332952747,0.25,91.078,90.972,112.4]
[1643332952945,24.3552,91.079,90.973,2.20207814]
[1643332953145,24.3552,91.079,90.973,2.45207814]
[1643332953348,24.3552,91.079,90.983,6.0]
[1643332953547,24.3552,91.079,90.99,13.41]
[1643332953748,24.3552,91.079,90.991,112.65]
[1643332953947,24.3552,91.079,90.992,41.42760258]
[1643332954148,13.41,91.14,90.993,112.4]
[1643332954357,54.9357,91.17,91.002,6.0]
[1643332954358,22.5702,91.128,91.002,6.0]
[1643332954548,22.5702,91.128,91.011,112.2]
[1643332954750,22.5702,91.128,91.02,13.41]
[1643332954949,22.5702,91.128,91.02,12.11]
[1643332955249,18.31307492,91.127,91.021,45.90623158]
[1643332955449,18.31307492,91.127,91.021,47.9163491]
[1643332955650,47.7849,91.163,91.021,47.9163491]
[1643332955852,99.2364,91.189,91.03,16.4742]
[1643332956051,99.2364,91.189,91.031,67.55]
[1643332956251,23.8277,91.189,91.041,179.49]
[1643332956450,23.8277,91.189,91.041,118.2]
[1643332956655,16.11492593,91.188,91.042,40.42361439]
[1643332956853,16.11492593,91.188,91.081,46.98286488]
[1643332957051,16.11492593,91.188,91.091,6.0]
[1643332957252,16.11492593,91.188,91.092,0.25]
[1643332959055,6.0,91.178,91.092,0.25]
[1643332959255,0.25,91.177,91.092,0.25]
[1643332959557,6.0,91.178,91.082,0.25]
[1643332960154,6.0,91.178,91.082,0.45]
[1643332960155,6.0,91.177,91.082,0.45]
[1643332960457,6.0,91.177,91.082,0.2]
[1643332960659,112.2,91.175,91.051,0.2]
[1643332960863,16.4764,91.17,91.02,13.41]
[1643332961062,112.2,91.159,90.98,16.076]
[1643332961258,117.11686015,91.157,90.979,44.33514755]
[1643332961462,0.30826018,91.147,90.979,44.33514755]
[1643332961661,13.41,91.14,90.979,44.33514755]
[1643332961861,16.36492593,91.139,90.979,44.33514755]
[1643332962063,6.0,91.129,90.979,44.33514755]
[1643332962259,4.91686015,91.099,90.979,43.83514755]
[1643332962559,6.0,91.089,90.979,43.83514755]
[1643332962758,112.45,91.088,90.979,43.83514755]
[1643332962957,16.61492593,91.079,90.979,43.83514755]
[1643332963161,118.2,91.078,90.979,43.83514755]
[1643332963358,6.0,91.069,90.979,43.83514755]
[1643332963560,6.0,91.068,90.979,43.83514755]
[1643332963968,0.25,91.067,90.95,16.4888]
[1643332964164,112.2,91.066,90.95,13.41]
[1643332964365,0.25,91.065,90.934,16.0645]
[1643332964565,112.2,91.055,90.934,16.0645]
[1643332964760,0.25,91.054,90.934,16.0645]
[1643332964966,5.16686015,91.054,90.935,53.18960545]
[1643332965163,4.91686015,91.054,90.94,13.41]
[1643332965462,4.91686015,91.054,90.94,29.8998]
[1643332965662,4.91686015,91.054,90.95,6.0]
[1643332965862,4.91686015,91.054,90.951,46.60179503]
[1643332966066,4.91686015,91.054,90.952,0.2]
[1643332966664,0.25,91.053,90.952,0.2]
[1643332967565,0.05,91.053,90.951,52.60179503]
[1643332967766,4.91686015,91.054,90.951,52.60179503]
[1643332967964,4.91686015,91.054,90.952,112.2]
[1643332968164,4.91686015,91.054,90.961,112.2]
[1643332968464,4.91686015,91.054,90.962,0.25]
[1643332969265,0.25,91.053,90.962,0.25]
[1643332969465,0.25,91.053,90.961,6.0]
[1643332971765,4.91686015,91.054,90.962,0.25]
[1643332972467,4.91686015,91.054,90.962,6.25]
[1643332972667,4.91686015,91.054,90.962,6.45]
[1643332972869,4.91686015,91.054,90.962,6.25]
[1643332973972,4.91686015,91.054,90.962,0.25]
[1643332974172,4.91686015,91.054,90.973,48.07501799]
[1643332974372,4.91686015,91.054,90.974,0.45]
[1643332974573,0.25,91.053,90.983,6.0]
[1643332974796,0.25,91.053,90.984,0.25]
[1643332975000,0.25,91.053,90.983,6.0]
[1643332977396,0.25,91.053,90.984,0.25]
[1643332978097,4.91686015,91.054,90.984,0.25]
[1643332978900,0.25,91.053,90.984,0.25]
[1643332979098,0.25,91.053,90.974,0.45]
[1643332979298,0.25,91.053,90.974,0.2]
[1643332979501,13.41,91.04,90.911,16.9232]
[1643332979697,13.41,91.04,90.912,0.2]
[1643332979900,112.2,91.029,90.9,16.4968]
[1643332980103,6.0,91.019,90.901,0.2]
[1643332980302,6.0,91.019,90.901,44.8076628]
[1643332980501,6.0,91.018,90.911,6.0]
[1643332980702,6.0,91.018,90.912,112.2]
[1643332980901,6.0,91.018,90.913,0.2]
[1643332981107,6.0,91.017,90.913,0.2]
[1643332981304,13.41,91.04,90.92,16.4935]
[1643332981509,48.5253,91.085,90.93,19.41]
[1643332981804,48.5253,91.085,90.933,2.89646403]
[1643332982001,48.5253,91.085,90.931,3.38442943]
[1643332982002,23.8721,91.108,90.943,6.0]
[1643332982203,16.4916,91.08,90.95,13.41]
[1643332982502,17.43671332,91.087,90.96,6.0]
[1643332982703,17.43671332,91.087,90.97,13.41]
[1643332982906,0.25,91.086,90.971,0.45]
[1643332983102,0.25,91.086,90.98,6.0]
[1643332983303,0.25,91.086,90.981,36.21062221]
[1643332983505,6.0,91.077,90.982,0.2]
[1643332983905,6.0,91.068,90.982,0.2]
[1643332984106,112.2,91.065,90.991,6.0]
[1643332984604,112.2,91.065,75.217,68.60014303]
[1643332984605,29.9057,91.06,90.97,6.0]
[1643332984805,29.9057,91.06,90.914,0.2]
[1643332984806,112.2,91.049,90.914,0.2]
[1643332985005,6.0,91.039,90.901,0.2]
[1643332985207,70.8635,91.038,90.904,17.68060141]
[1643332985404,16.6216526,91.037,90.905,47.12972179]
[1643332985606,6.0,91.027,90.906,0.2]
[1643332985805,24.5012,91.026,90.912,1.46736303]
[1643332986103,4.91013348,91.014,90.912,1.46736303]
[1643332986304,23.4299,91.013,90.916,1.46736303]
[1643332986606,23.1799,91.013,90.918,1.46736303]
[1643332986905,0.25,91.012,90.92,1.46736303]
[1643332987107,0.25,91.012,90.92,0.2]
[1643332987305,0.25,91.012,90.922,1.46736303]
[1643332987710,0.25,91.012,90.923,0.25]
[1643332988107,0.25,91.012,90.927,1.46736303]
[1643332988305,0.25,91.012,90.928,0.25]
[1643332988907,0.25,91.012,90.934,1.46736303]
[1643332989108,0.25,91.012,90.935,40.22687514]
[1643332989305,0.25,91.012,90.936,0.2]
[1643332989707,4.91013348,91.014,90.936,0.2]
[1643332990110,4.91013348,91.014,90.952,1.46736303]
[1643332990507,4.91013348,91.014,90.91,13.41]
[1643332990508,6.0,91.004,90.947,1.07353005]
[1643332990707,6.0,91.004,90.921,3.09646403]
[1643332990708,112.2,91.003,90.898,2.89646403]
[1643332990908,22.647,91.002,90.898,2.89646403]
[1643332991109,6.0,90.992,90.891,2.89646403]
[1643332991309,38.97871962,90.991,90.892,39.56297968]
[1643332991508,44.97871962,90.991,90.893,0.2]
[1643332991709,44.97871962,90.991,90.893,3.40629934]
[1643332992109,44.97871962,90.991,90.894,2.95629934]
[1643332992311,44.97871962,90.991,90.895,0.25]
[1643332992915,44.97871962,90.991,90.896,2.95629934]
[1643332993312,44.97871962,90.991,90.897,0.25]
[1643332994214,44.97871962,90.991,90.893,0.2]
[1643332994413,112.2,90.989,90.893,0.2]
[1643332994614,112.2,90.978,90.893,0.2]
[1643332994914,5.16013348,90.977,90.893,0.2]
[1643332995115,6.0,90.967,90.893,0.2]
[1643332995313,0.25,90.966,90.893,0.2]
[1643332995521,0.25,90.966,90.857,111.9]
[1643332995522,28.9546,90.966,90.867,6.0]
[1643332995914,112.2,90.965,90.867,6.0]
[1643332996113,6.0,90.955,90.867,6.0]
[1643332996314,128.67781962,90.954,90.868,49.2512749]
[1643332996517,6.0,90.944,90.869,0.2]
[1643332996914,112.45,90.943,90.869,0.2]
[1643332997115,112.2,90.932,90.869,0.2]
[1643332997314,112.2,90.932,90.835,2.89646403]
[1643332997315,0.25,90.931,90.841,0.2]
[1643332997515,112.2,90.921,90.839,0.2]
[1643332997716,112.2,90.921,90.822,16.8864]
[1643332997915,112.2,90.921,90.823,3.14548423]
[1643332998118,4.91013348,90.92,90.824,44.99416622]
[1643332998316,0.25,90.919,90.825,0.24351504]
[1643332998520,112.2,90.909,90.825,0.24351504]
[1643332998918,16.22781962,90.898,90.825,0.24351504]
[1643332999120,6.0,90.888,90.825,0.04351504]
[1643332999318,0.25,90.887,90.825,0.04351504]
[1643332999519,118.45,90.887,90.825,0.04351504]
[1643332999719,117.95,90.887,90.825,0.04351504]
[1643333000119,45.6277,90.897,90.825,0.04351504]
[1643333001319,0.25,90.896,90.825,0.04351504]
[1643333001522,6.0,90.887,90.825,0.04351504]
[1643333001920,0.25,90.886,90.825,0.04351504]
[1643333002121,6.0,90.887,90.825,0.04351504]
[1643333002523,16.5238,90.89,90.825,0.04351504]
[1643333002723,45.6277,90.897,90.825,0.04351504]
[1643333006128,112.2,90.896,90.825,0.04351504]
[1643333006425,112.45,90.896,90.825,0.04351504]
[1643333006626,1.45196847,90.885,90.825,0.04351504]
[1643333006828,0.25,90.884,90.825,0.04351504]
[1643333007027,1.45196847,90.885,90.825,0.04351504]
[1643333007628,0.25,90.884,90.825,0.04351504]
[1643333008027,1.45196847,90.885,90.825,0.04351504]
[1643333008227,112.2,90.896,90.825,0.04351504]
[1643333009257,17.10694921,90.895,90.825,0.04351504]
[1643333011256,0.25,90.894,90.825,0.04351504]
[1643333012958,112.45,90.894,90.825,0.04351504]
[1643333013157,17.10694921,90.895,90.825,0.04351504]
[1643333013563,0.25,90.894,90.825,0.04351504]
[1643333013761,112.45,90.894,90.825,0.04351504]
[1643333015159,0.25,90.894,90.825,0.04351504]
[1643333016562,112.45,90.894,90.825,0.04351504]
[1643333017665,6.0,90.884,90.825,0.04351504]
[1643333018163,22.5634,90.93,90.83,13.41]
[1643333018367,112.2,90.939,90.831,0.2]
[1643333018563,46.9653,90.955,90.831,20.11222841]
[1643333018766,13.41,90.94,90.832,0.2]
[1643333018965,24.7734,90.939,90.832,0.2]
[1643333019163,24.7734,90.939,90.825,0.04351504]
[1643333019164,14.82908104,90.938,90.825,0.04351504]
[1643333019562,6.0,90.928,90.825,0.04351504]
[1643333019763,13.41,90.92,90.825,0.04351504]
[1643333019964,6.30887206,90.918,90.825,0.04351504]
[1643333020167,6.0,90.91,90.825,0.04351504]
[1643333020373,13.41,90.9,90.825,0.04351504]
[1643333020565,6.0,90.89,90.825,0.04351504]
[1643333020765,23.0172,90.889,90.825,0.04351504]
[1643333020964,29.0172,90.889,90.825,0.04351504]
[1643333021168,6.0,90.88,90.825,0.04351504]
[1643333021369,30.79927206,90.879,90.825,0.04351504]
[1643333021569,13.41,90.87,90.825,0.04351504]
[1643333021764,6.25,90.869,90.825,0.04351504]
[1643333021973,14.82908104,90.859,90.825,0.04351504]
[1643333022165,20.82908104,90.859,90.825,0.04351504]
[1643333022568,14.82908104,90.859,90.825,0.04351504]
[1643333023266,112.45,90.858,90.825,0.04351504]
[1643333024465,112.2,90.858,90.825,0.04351504]
[1643333024967,0.25,90.857,90.825,0.04351504]
[1643333025667,112.2,90.858,90.825,0.04351504]
[1643333026266,0.25,90.857,90.825,0.04351504]
[1643333026468,8.07,90.857,90.825,0.04351504]
[1643333026667,112.2,90.856,90.825,0.04351504]
[1643333027773,0.25,90.855,90.825,0.04351504]
[1643333028975,0.25,90.855,90.825,0.00351504]
[1643333029172,6.0,90.846,90.825,0.00351504]
[1643333029372,112.45,90.845,90.825,0.00351504]
[1643333029572,118.45,90.845,90.825,0.00351504]
[1643333029976,112.2,90.843,90.825,0.00351504]
[1643333030173,3.02809024,90.84,90.825,0.00351504]
[1643333030374,112.2,90.832,90.825,0.00351504]
[1643333030777,0.25,90.831,90.825,0.00351504]
[1643333034481,3.02809024,90.84,90.825,0.00351504]
[1643333036684,3.02809024,90.84,90.79,15.83351504]
[1643333036882,20.39067695,90.839,90.791,36.34624874]
[1643333037083,3.02809024,90.84,90.791,36.34624874]
[1643333038382,3.02809024,90.84,90.792,0.25]
[1643333041785,3.02809024,90.84,90.791,0.45]
[1643333042584,3.02809024,90.84,90.791,35.61013386]
[1643333042784,3.02809024,90.84,90.792,0.2]
[1643333046288,0.25,90.839,90.791,0.2]
[1643333046490,24.1216,90.839,90.76,15.88]
[1643333046788,24.1216,90.839,90.761,3.1697153]
[1643333046991,24.1216,90.839,90.761,0.2]
[1643333047188,112.2,90.838,90.762,43.09998632]
[1643333047390,0.25,90.837,90.763,0.2]
[1643333048391,0.25,90.837,90.761,0.2]
[1643333048591,6.0,90.828,90.741,0.2]
[1643333048794,112.45,90.827,90.724,2.89646403]
[1643333048994,6.0,90.817,90.722,2.89646403]
[1643333049193,112.2,90.816,90.724,2.89646403]
[1643333049393,0.32979907,90.815,90.723,38.34501744]
[1643333049597,112.2,90.805,90.724,3.17810605]
[1643333049817,0.25,90.804,90.724,3.17810605]
[1643333050017,112.2,90.805,90.725,2.97810605]
[1643333050619,112.2,90.805,90.725,5.87457008]
[1643333050822,0.25,90.804,90.726,0.25]
[1643333051018,0.25,90.804,90.724,6.32457008]
[1643333051220,0.25,90.804,90.727,2.97810605]
[1643333051420,0.25,90.804,90.725,2.97810605]
[1643333051619,0.25,90.804,90.724,0.45]
[1643333051818,0.25,90.804,90.725,2.97409175]
[1643333052221,0.25,90.804,90.724,0.2]
[1643333054026,112.2,90.794,90.701,0.2]
[1643333054225,15.88,90.78,90.668,0.2]
[1643333054422,15.88,90.78,90.643,2.89646403]
[1643333054622,112.2,90.769,90.638,2.89646403]
[1643333054825,32.4312,90.76,90.651,2.97420519]
[1643333055022,6.0,90.75,90.646,3.09646403]
[1643333055226,6.0,90.75,90.639,2.89646403]
[1643333055430,112.45,90.749,90.631,0.2]
[1643333055636,121.40669142,90.749,90.631,0.2]
[1643333055824,6.0,90.74,90.611,3.09646403]
[1643333056027,6.0,90.738,90.651,48.39060031]
[1643333056226,6.0,90.738,90.652,0.2]
[1643333056424,6.0,90.729,90.652,0.2]
[1643333056628,6.0,90.729,90.624,2.89646403]
[1643333056825,23.3593,90.728,90.621,0.2]
[1643333057025,6.0,90.718,90.621,0.2]
[1643333057427,16.15673668,90.717,90.651,38.4952387]
[1643333057627,16.15673668,90.717,90.652,0.2]
[1643333057826,112.2,90.706,90.595,2.89646403]
[1643333058027,112.2,90.695,90.581,0.24363226]
[1643333058425,6.0,90.685,90.581,0.24363226]
[1643333058628,163.95231642,90.684,90.581,0.24363226]
[1643333058832,164.20231642,90.684,90.581,0.24363226]
[1643333059033,6.0,90.674,90.581,0.04363226]
[1643333059427,51.75231642,90.684,90.581,0.04363226]
[1643333059629,73.4405,90.716,90.582,18.87765087]
[1643333059827,73.4405,90.716,90.583,0.2]
[1643333060030,15.88,90.73,90.583,47.55235557]
[1643333060226,15.88,90.73,90.584,0.2]
[1643333060629,54.47072353,90.729,90.581,0.04363226]